bitfinex-derivatives/quotes_SOLF0:USTF0_20250909
["timestamp","ask_amount","ask_price","bid_price","bid_amount"]
[1757393334744,6.97785222,214.61,214.57,7.34]
[1757393334949,6.97785222,214.6,214.49,7.34]
[1757393335250,3.73257066,214.59,214.5,128.44906366]
[1757393335550,6.97754912,214.58,214.5,128.44906366]
[1757393335746,6.97754912,214.57,214.5,128.44906366]
[1757393335947,3.73257066,214.56,214.5,128.44906366]
[1757393336147,7.21,214.62,214.5,128.44906366]
[1757393336450,10.62567249,214.61,214.49,7.34]
[1757393336649,10.62567249,214.6,214.5,114.72]
[1757393336947,7.21,214.62,214.5,114.72]
[1757393336948,6.97682806,214.59,214.5,114.72]
[1757393337143,6.97682806,214.58,214.5,114.72]
[1757393337345,3.7325187,214.57,214.5,114.72]
[1757393337545,7.21,214.62,214.51,7.34]
[1757393337740,6.97450795,214.61,214.53,3.30906366]
[1757393337947,6.97450795,214.6,214.53,3.30906366]
[1757393338145,3.73129269,214.59,214.54,7.34]
[1757393338348,7.21,214.62,214.54,7.34]
[1757393338543,6.97386263,214.61,214.54,7.34]
[1757393338848,6.97386263,214.6,214.54,7.34]
[1757393339043,3.73098128,214.59,214.53,3.30906366]
[1757393339251,7.21,214.62,214.53,10.64906366]
[1757393339449,6.97351446,214.61,214.53,10.64906366]
[1757393339650,3.73080354,214.6,214.53,10.64906366]
[1757393339951,7.21,214.62,214.53,10.64906366]
[1757393340154,6.9735818,214.61,214.53,10.64906366]
[1757393340450,3.73084016,214.6,214.53,7.34]
[1757393340645,7.21,214.62,214.53,7.34]
[1757393340852,6.97305803,214.61,214.53,7.34]
[1757393341042,3.73056008,214.6,214.53,7.34]
[1757393341250,7.21,214.62,214.53,7.34]
[1757393341551,6.97300128,214.61,214.53,7.34]
[1757393341746,6.97300128,214.6,214.54,72.58]
[1757393341950,3.73054102,214.59,214.52,7.34]
[1757393342145,7.21,214.62,214.53,124.62]
[1757393342346,6.97336729,214.61,214.53,124.62]
[1757393342546,7.21,214.62,214.53,124.62]
[1757393342747,6.97270089,214.61,214.53,124.62]
[1757393342948,7.21,214.62,214.53,124.62]
[1757393343150,3.73036165,214.61,214.53,124.62]
[1757393343351,7.21,214.68,214.54,7.34]
[1757393343551,10.61932413,214.67,214.54,7.34]
[1757393343753,10.61932413,214.66,214.55,5.32386192]
[1757393343953,3.73034491,214.65,214.56,7.34]
[1757393344152,7.21,214.68,214.56,7.34]
[1757393344356,6.97209477,214.67,214.56,7.34]
[1757393344551,6.97209477,214.66,214.57,124.48]
[1757393344851,6.97209477,214.65,214.57,124.48]
[1757393345053,6.97209477,214.64,214.57,124.48]
[1757393345354,7.21,214.68,214.56,7.34]
[1757393345549,10.62155307,214.67,214.57,124.66]
[1757393345852,10.62155307,214.66,214.56,7.34]
[1757393346055,17.83176989,214.65,214.57,124.54]
[1757393346261,6.97416299,214.64,214.57,124.54]
[1757393346557,6.97416299,214.63,214.56,7.34]
[1757393346854,7.21,214.61,214.57,124.52]
[1757393347056,5.2102299,214.69,214.54,313.2]
[1757393347251,7.21,214.67,214.54,437.7]
[1757393347456,10.63641853,214.66,214.54,437.7]
[1757393347651,10.63641853,214.65,214.54,437.7]
[1757393347850,7.21,214.63,214.54,437.7]
[1757393348050,6.98873301,214.62,214.54,437.7]
[1757393348255,6.98873301,214.61,214.54,437.7]
[1757393348454,3.74502135,214.6,214.54,437.7]
[1757393348655,7.21,214.63,214.54,437.7]
[1757393348854,6.98974155,214.62,214.54,437.7]
[1757393349055,6.98974155,214.61,214.54,437.7]
[1757393349250,3.74578281,214.6,214.54,437.7]
[1757393349457,7.21,214.63,214.54,437.7]
[1757393349653,6.9904425,214.62,214.54,437.7]
[1757393349853,6.9904425,214.61,214.54,437.7]
[1757393350054,3.74616246,214.6,214.54,437.7]
[1757393350255,7.21,214.63,214.54,437.7]
[1757393350453,6.9913993,214.62,214.54,437.7]
[1757393350652,6.9913993,214.61,214.55,124.24]
[1757393350850,13.13920677,214.7,214.54,313.2]
[1757393350851,6.9913993,214.6,214.54,313.2]
[1757393351049,6.9913993,214.59,214.56,124.22]
[1757393351249,7.21,214.62,214.56,124.22]
[1757393351454,7.21,214.6,214.56,124.22]
[1757393351657,14.20112902,214.59,214.56,124.22]
[1757393351858,7.21,214.59,214.54,313.2]
[1757393352059,7.21,214.59,214.55,124.12]
[1757393353159,7.21,214.66,214.55,124.12]
[1757393353461,5.2102299,214.67,214.56,124.0]
[1757393353462,7.19,214.64,214.56,124.0]
[1757393353755,7.19,214.62,214.56,124.0]
[1757393354060,7.19,214.6,214.56,124.0]
[1757393354258,6.98975618,214.59,214.56,124.0]
[1757393354457,7.19,214.6,214.56,124.0]
[1757393354657,6.98919714,214.59,214.56,124.0]
[1757393354860,7.19,214.6,214.56,124.0]
[1757393355157,6.98919714,214.59,214.56,124.0]
[1757393355359,7.19,214.6,214.56,124.0]
[1757393355560,6.98857021,214.59,214.57,124.04]
[1757393355764,7.19,214.6,214.57,124.04]
[1757393356061,6.98834121,214.59,214.57,124.04]
[1757393356256,7.19,214.68,214.58,7.06]
[1757393356456,10.63467879,214.67,214.58,7.06]
[1757393356660,10.63471831,214.66,214.58,7.06]
[1757393356860,6.98719333,214.65,214.58,7.06]
[1757393357159,6.98719333,214.64,214.58,7.06]
[1757393357354,14.17719333,214.63,214.59,124.18]
[1757393357562,14.17719333,214.62,214.54,320.26]
[1757393357761,6.98719333,214.61,214.55,124.14]
[1757393357958,6.98719333,214.6,214.55,131.2]
[1757393358160,3.74480832,214.59,214.56,7.06]
[1757393358358,5.2102299,214.68,214.56,7.06]
[1757393358359,7.19,214.67,214.56,7.06]
[1757393358660,7.19,214.65,214.57,124.18]
[1757393358960,10.62253769,214.64,214.56,7.06]
[1757393359161,6.98771927,214.63,214.57,124.1]
[1757393359360,6.98771927,214.63,214.56,7.06]
[1757393359361,6.98771927,214.62,214.58,124.1]
[1757393359556,6.98771927,214.61,214.58,124.1]
[1757393359760,7.19,214.65,214.58,124.1]
[1757393359962,6.98673798,214.64,214.59,124.04]
[1757393360164,14.17673798,214.63,214.59,124.04]
[1757393360360,6.98673798,214.62,214.59,123.98]
[1757393360558,7.19,214.63,214.59,123.98]
[1757393360760,6.98658064,214.62,214.56,7.06]
[1757393361061,7.19,214.63,214.57,123.98]
[1757393361257,6.98631745,214.62,214.57,7.06]
[1757393361458,7.19,214.63,214.58,123.9]
[1757393361664,6.98645492,214.62,214.58,123.9]
[1757393361863,7.19,214.63,214.58,130.96]
[1757393362064,6.98639346,214.62,214.58,130.96]
[1757393362263,7.19,214.63,214.58,130.96]
[1757393362565,6.98627224,214.62,214.58,7.06]
[1757393362864,7.19,214.63,214.59,123.84]
[1757393363064,6.98638517,214.62,214.59,123.84]
[1757393363264,7.19,214.62,214.59,123.84]
[1757393363663,7.19,214.62,214.58,7.06]
[1757393363863,6.98741864,214.61,214.59,123.7]
[1757393364064,6.98741864,214.6,214.59,123.7]
[1757393366968,6.98741864,214.6,214.59,130.76]
[1757393368267,6.98741864,214.6,214.59,7.06]
[1757393368473,6.98741864,214.6,214.59,130.4]
[1757393368668,6.98741864,214.6,214.59,130.28]
[1757393370168,10.63464792,214.6,214.59,130.28]
[1757393370769,6.98741864,214.6,214.59,130.28]
[1757393371267,5.2102299,214.68,214.6,7.06]
[1757393371465,3.64859742,214.67,214.6,7.06]
[1757393371666,3.64859742,214.66,214.61,2.10253262]
[1757393371861,3.64859742,214.65,214.63,7.06]
[1757393372067,3.64859742,214.64,214.63,7.06]
[1757393373167,5.2102299,214.69,214.63,7.06]
[1757393373365,3.65161734,214.68,214.62,123.0]
[1757393373564,3.65161734,214.67,214.63,7.06]
[1757393373771,5.2102299,214.71,214.65,7.06]
[1757393373968,3.65107256,214.7,214.66,122.82]
[1757393374167,3.65107256,214.69,214.67,7.06]
[1757393374373,3.65107256,214.68,214.67,7.06]
[1757393374666,71.2383064,214.73,214.66,122.82]
[1757393374872,71.2383064,214.73,214.67,7.06]
[1757393375374,5.2102299,214.73,214.67,7.06]
[1757393376372,12.4002299,214.74,214.67,7.06]
[1757393376570,5.2102299,214.73,214.67,7.06]
[1757393377264,12.4002299,214.74,214.67,7.06]
[1757393379377,5.2102299,214.74,214.67,7.06]
[1757393379778,5.2102299,214.76,214.67,7.06]
[1757393380076,5.2102299,214.76,214.68,122.36]
[1757393380285,7.31276252,214.77,214.68,122.36]
[1757393380585,7.31276252,214.77,214.65,2.10253262]
[1757393380586,7.19,214.71,214.65,122.3]
[1757393381483,7.19,214.71,214.65,122.36]
[1757393381679,7.19,214.71,214.62,2.10253262]
[1757393381874,7.19,214.71,214.65,122.3]
[1757393383083,6.92365895,214.7,214.65,124.40253262]
[1757393383283,6.92365895,214.69,214.66,7.58]
[1757393383482,6.92365895,214.68,214.65,124.40253262]
[1757393383684,6.92365895,214.67,214.66,7.58]
[1757393384083,7.19,214.75,214.66,7.58]
[1757393384385,6.9213472,214.74,214.66,7.58]
[1757393384588,6.9213472,214.73,214.66,7.58]
[1757393384782,6.9213472,214.72,214.69,7.58]
[1757393384988,6.9213472,214.71,214.68,2.10253262]
[1757393385187,12.4202299,214.79,214.69,7.58]
[1757393385383,7.21,214.77,214.69,7.58]
[1757393385587,6.91859427,214.76,214.69,7.58]
[1757393385788,6.91859427,214.75,214.69,7.58]
[1757393385992,6.91859427,214.74,214.69,7.58]
[1757393386191,6.91859427,214.73,214.69,7.58]
[1757393386390,6.91859427,214.72,214.69,7.58]
[1757393386590,3.22702724,214.71,214.69,7.58]
[1757393386790,7.21,214.77,214.69,7.58]
[1757393386993,6.91378188,214.76,214.69,7.58]
[1757393387192,6.91378188,214.75,214.69,7.58]
[1757393387393,6.91378188,214.74,214.68,9.68253262]
[1757393387590,6.91378188,214.73,214.68,2.10253262]
[1757393387893,6.91378188,214.72,214.69,7.58]
[1757393388094,7.21,214.77,214.69,7.58]
[1757393388293,6.9110712,214.76,214.69,7.58]
[1757393388494,6.9110712,214.75,214.69,7.58]
[1757393388693,6.9110712,214.74,214.69,7.58]
[1757393388895,6.9110712,214.73,214.68,2.10253262]
[1757393389093,6.9110712,214.72,214.68,2.10253262]
[1757393389294,7.21,214.77,214.69,7.58]
[1757393389595,6.90848362,214.76,214.69,7.58]
[1757393389785,6.90848362,214.75,214.69,7.58]
[1757393389984,6.90848362,214.74,214.69,7.58]
[1757393390191,6.90848362,214.73,214.68,2.10253262]
[1757393390390,6.90848362,214.72,214.69,7.58]
[1757393390593,7.21,214.77,214.69,7.58]
[1757393390791,6.90689009,214.76,214.69,7.58]
[1757393390993,6.90689009,214.75,214.69,7.58]
[1757393391193,6.90689009,214.74,214.69,7.58]
[1757393391394,6.90689009,214.73,214.68,2.10253262]
[1757393391595,3.68563322,214.72,214.69,7.58]
[1757393391896,7.21,214.77,214.69,7.58]
[1757393392098,6.90563882,214.76,214.69,7.58]
[1757393392296,6.90563882,214.75,214.69,7.58]
[1757393392491,6.90563882,214.74,214.69,7.58]
[1757393392692,6.90563882,214.73,214.69,7.58]
[1757393392898,6.90563882,214.72,214.69,7.58]
[1757393393100,7.21,214.77,214.69,7.58]
[1757393393299,6.90433867,214.76,214.69,7.58]
[1757393393597,6.90433867,214.75,214.69,7.58]
[1757393393793,6.90433867,214.74,214.68,2.10253262]
[1757393394099,7.21,214.77,214.69,7.58]
[1757393394293,6.90286261,214.76,214.69,7.58]
[1757393394498,6.90286261,214.75,214.69,7.58]
[1757393394698,6.90286261,214.74,214.69,7.58]
[1757393394899,7.21,214.77,214.69,7.58]
[1757393395099,6.90226746,214.76,214.69,7.58]
[1757393395293,6.90226746,214.75,214.69,7.58]
[1757393395493,6.90226746,214.74,214.68,2.10253262]
[1757393395798,7.21,214.77,214.69,7.58]
[1757393396004,6.90115966,214.76,214.69,7.58]
[1757393396297,6.90115966,214.75,214.69,7.58]
[1757393396598,6.90115966,214.74,214.69,7.58]
[1757393396795,7.21,214.77,214.69,7.58]
[1757393396993,6.90048545,214.76,214.69,7.58]
[1757393397195,7.21,214.74,214.68,2.10253262]
[1757393397395,6.90048545,214.73,214.68,2.10253262]
[1757393397598,7.21,214.71,214.68,2.10253262]
[1757393398498,7.21,214.71,214.68,9.68253262]
[1757393398694,7.21,214.79,214.68,9.68253262]
[1757393398900,7.21,214.77,214.68,9.68253262]
[1757393399099,6.90188341,214.76,214.68,9.68253262]
[1757393399299,6.90188341,214.75,214.68,9.68253262]
[1757393399600,6.90188341,214.74,214.68,9.68253262]
[1757393399904,6.90188341,214.73,214.69,7.58]
[1757393400204,6.90188341,214.72,214.69,7.58]
[1757393400404,7.21,214.77,214.69,7.58]
[1757393400604,6.90320959,214.76,214.69,7.58]
[1757393400805,6.90320959,214.75,214.69,7.58]
[1757393401005,14.11320959,214.74,214.69,7.58]
[1757393401206,6.90320959,214.73,214.69,7.58]
[1757393401505,7.21,214.74,214.68,2.10253262]
[1757393401506,6.90320959,214.72,214.68,2.10253262]
[1757393401697,7.21,214.74,214.68,9.68253262]
[1757393401898,6.90347733,214.73,214.69,7.58]
[1757393402102,6.90347733,214.72,214.69,7.58]
[1757393402304,1.34391191,214.77,214.69,7.58]
[1757393402505,6.90344031,214.76,214.69,1.34391191]
[1757393402706,14.11344031,214.75,214.69,1.34391191]
[1757393402907,7.21,214.73,214.69,1.34391191]
[1757393403110,14.11344031,214.72,214.69,1.34391191]
[1757393403412,7.21,214.72,214.69,1.34391191]
[1757393403811,7.21,214.76,214.69,8.92391191]
[1757393404011,6.90442674,214.75,214.69,8.92391191]
[1757393404205,7.21,214.73,214.66,1.34391191]
[1757393404405,8.55391191,214.71,214.65,67.76]
[1757393404608,6.90442674,214.7,214.65,67.76]
[1757393404810,7.21,214.69,214.65,67.76]
[1757393405113,7.21,214.7,214.65,67.76]
[1757393405317,7.21,214.7,214.64,1.34391191]
[1757393405908,6.94228662,214.69,214.65,0.03186134]
[1757393406110,7.21,214.67,214.65,0.03186134]
[1757393406404,7.21,214.67,214.59,320.66]
[1757393406405,15.47248568,214.66,214.59,1.34391191]
[1757393406607,6.91857377,214.65,214.61,1.34391191]
[1757393406813,7.21,214.66,214.63,1.34391191]
[1757393407015,1.34391191,214.7,214.63,1.34391191]
[1757393407016,8.55391191,214.7,214.63,1.34391191]
[1757393407215,6.91970822,214.69,214.63,1.34391191]
[1757393407412,8.55391191,214.7,214.63,1.34391191]
[1757393407413,7.21,214.67,214.63,1.34391191]
[1757393407620,6.91970822,214.66,214.63,1.34391191]
[1757393407917,7.21,214.67,214.63,8.92391191]
[1757393408111,6.92070194,214.66,214.63,8.92391191]
[1757393408311,7.21,214.67,214.63,8.92391191]
[1757393408623,7.21,214.65,214.62,1.34391191]
[1757393409412,0.03497116,214.66,214.62,1.34391191]
[1757393409615,0.03497116,214.66,214.65,7.58]
[1757393410715,0.03497116,214.66,214.64,1.34391191]
[1757393410716,7.24497116,214.66,214.64,1.34391191]
[1757393411517,0.03497116,214.66,214.64,8.92391191]
[1757393411919,0.03497116,214.66,214.65,7.58]
[1757393412513,7.21,214.74,214.65,8.04]
[1757393412710,6.92706154,214.73,214.71,1.34391191]
[1757393412911,14.13706154,214.72,214.71,1.34391191]
[1757393413914,7.47,214.71,214.69,1.34391191]
[1757393414112,14.39706154,214.7,214.65,7.58]
[1757393414308,7.47,214.68,214.66,1.34391191]
[1757393414507,7.47,214.72,214.67,1.34391191]
[1757393414816,7.47,214.7,214.67,1.34391191]
[1757393415015,6.93485372,214.69,214.67,1.34391191]
[1757393415320,6.93485372,214.68,214.67,1.34391191]
[1757393416012,14.40485372,214.68,214.67,1.34391191]
[1757393416219,6.93485372,214.68,214.63,1.34391191]
[1757393416413,7.47,214.66,214.63,1.34391191]
[1757393416720,6.93485372,214.65,214.63,1.34391191]
[1757393416920,7.47,214.71,214.64,7.14]
[1757393417222,14.41476746,214.7,214.66,1.34391191]
[1757393417419,6.94476746,214.69,214.66,1.34391191]
[1757393417620,6.94640529,214.68,214.62,83.42]
[1757393417814,6.94640529,214.67,214.63,7.14]
[1757393418014,6.94640529,214.66,214.63,7.14]
[1757393418215,7.47,214.73,214.62,83.42]
[1757393418417,6.94766673,214.72,214.62,83.42]
[1757393418620,6.94766673,214.71,214.63,7.14]
[1757393418819,6.94766673,214.7,214.69,1.34391191]
[1757393419521,14.41766673,214.7,214.69,1.34391191]
[1757393421217,7.47,214.69,214.65,1.34391191]
[1757393421425,6.94766673,214.68,214.65,1.34391191]
[1757393421624,7.47,214.66,214.65,1.34391191]
[1757393421823,14.41766673,214.66,214.65,1.34391191]
[1757393422020,14.41766673,214.66,214.6,120.5]
[1757393422216,14.41766673,214.65,214.64,1.34391191]
[1757393422816,6.94766673,214.65,214.64,1.34391191]
[1757393423223,6.94766673,214.65,214.64,8.48391191]
[1757393423525,7.47,214.69,214.64,8.48391191]
[1757393423724,6.94726852,214.68,214.67,1.34391191]
[1757393424221,14.41726852,214.68,214.67,1.34391191]
[1757393424728,6.94726852,214.68,214.67,1.34391191]
[1757393426821,14.41726852,214.68,214.67,1.34391191]
[1757393428625,14.41780322,214.68,214.67,1.34391191]
[1757393430626,7.47,214.67,214.65,1.34391191]
[1757393430830,6.94780322,214.66,214.65,1.34391191]
[1757393432129,7.47,214.71,214.65,8.94391191]
[1757393432330,7.47,214.71,214.7,1.34391191]
[1757393434828,7.47,214.74,214.7,1.34391191]
[1757393435132,7.47,214.77,214.72,1.34391191]
[1757393436227,1.34391191,214.73,214.64,7.14]
[1757393436436,1.34391191,214.73,214.63,32.64]
[1757393436437,7.47,214.72,214.66,1.34391191]
[1757393438432,7.47,214.72,214.65,1.34391191]
[1757393441541,6.55414181,214.73,214.67,1.34391191]
[1757393441733,7.47,214.72,214.67,1.34391191]
[1757393442135,6.55414181,214.73,214.67,1.34391191]
[1757393442343,7.47,214.72,214.67,1.34391191]
[1757393442539,6.55414181,214.73,214.67,1.34391191]
[1757393443228,7.47,214.72,214.67,1.34391191]
[1757393443432,5.2102299,214.73,214.56,7.1]
[1757393443634,7.32,214.7,214.64,1.34391191]
[1757393444339,7.32,214.68,214.64,1.34391191]
[1757393444639,1.34391191,214.71,214.64,1.34391191]
[1757393444640,7.32,214.66,214.64,1.34391191]
[1757393444839,6.88578679,214.65,214.64,1.34391191]
[1757393446540,6.88578679,214.65,214.58,7.1]
[1757393446741,7.32,214.66,214.64,1.34391191]
[1757393447039,6.88628183,214.65,214.64,1.34391191]
[1757393449243,6.88628183,214.65,214.58,7.1]
[1757393449443,7.32,214.66,214.64,1.34391191]
[1757393449637,6.88728509,214.65,214.64,1.34391191]
[1757393451342,6.88728509,214.65,214.64,8.44391191]
[1757393451950,3.22567691,214.65,214.64,8.44391191]
[1757393452456,5.02958882,214.65,214.53,14.7825596]
[1757393452651,19.41843378,214.64,214.52,1.34391191]
[1757393452952,7.32,214.56,214.49,8.44391191]
[1757393453144,6.88820388,214.55,214.49,8.44391191]
[1757393453344,10.54567691,214.54,214.49,8.44391191]
[1757393453544,7.32,214.54,214.51,1.34391191]
[1757393453744,7.32,214.62,214.53,8.44391191]
[1757393453941,7.32,214.6,214.56,1.34391191]
[1757393454152,7.32,214.58,214.56,1.34391191]
[1757393454353,7.32,214.58,214.55,1.34391191]
[1757393455451,7.32,214.58,214.53,7.1]
[1757393455651,7.32,214.58,214.55,1.34391191]
[1757393456759,7.32,214.58,214.54,0.03161354]
[1757393456760,7.32,214.56,214.54,1.37552545]
[1757393457065,7.32,214.56,214.54,1.34391191]
[1757393457450,7.32,214.6,214.54,1.34391191]
[1757393457655,14.19349327,214.59,214.56,1.34391191]
[1757393457856,7.32,214.59,214.56,1.34391191]
[1757393458857,7.32,214.59,214.56,8.44391191]
[1757393459156,7.32,214.59,214.56,1.34391191]
[1757393459356,1.34391191,214.65,214.56,1.34391191]
[1757393459559,14.19110281,214.64,214.56,1.34391191]
[1757393459749,7.32,214.62,214.56,1.34391191]
[1757393459952,7.32,214.6,214.54,1.34391191]
[1757393460154,6.87110281,214.59,214.54,1.34391191]
[1757393460354,6.87110281,214.58,214.54,1.34391191]
[1757393460559,7.32,214.6,214.54,1.34391191]
[1757393460760,7.32,214.58,214.54,1.34391191]
[1757393460958,7.32,214.6,214.54,1.34391191]
[1757393461258,6.87056351,214.59,214.54,1.34391191]
[1757393461456,7.32,214.57,214.54,1.34391191]
[1757393461657,7.32,214.6,214.54,1.34391191]
[1757393461959,1.34391191,214.61,214.54,1.34391191]
[1757393461960,6.86946524,214.59,214.54,1.34391191]
[1757393462160,7.32,214.57,214.48,7.91082026]
[1757393462457,7.32,214.55,214.47,2.10406248]
[1757393462654,3.21672783,214.54,214.44,7.91141578]
[1757393462856,7.32,214.53,214.46,2.10406248]
[1757393463556,7.32,214.53,214.47,7.1]
[1757393463761,7.32,214.6,214.49,2.10406248]
[1757393463961,7.32,214.58,214.49,2.10406248]
[1757393464254,6.86518659,214.57,214.49,2.10406248]
[1757393464460,6.86518659,214.56,214.49,2.10406248]
[1757393464660,6.86518659,214.55,214.49,2.10406248]
[1757393464860,7.32,214.61,214.5,7.1]
[1757393465063,7.32,214.59,214.5,7.1]
[1757393465253,7.32,214.57,214.49,2.10406248]
[1757393465455,7.32,214.55,214.49,2.10406248]
[1757393465660,7.32,214.55,214.46,7.1]
[1757393465963,3.77933149,214.54,214.46,7.1]
[1757393466163,7.32,214.53,214.46,7.1]
[1757393466559,7.32,214.53,214.45,2.10406248]
[1757393467060,3.77854853,214.52,214.45,2.10406248]
[1757393467254,7.32,214.53,214.45,2.10406248]
[1757393470165,7.32,214.53,214.44,7.1]
[1757393470361,7.32,214.53,214.45,2.10406248]
[1757393474960,7.32,214.53,214.46,2.10406248]
[1757393475867,7.32,214.53,214.46,9.61406248]
[1757393476066,7.32,214.53,214.49,2.10406248]
[1757393476264,7.32,214.53,214.5,7.51]
[1757393476866,7.25,214.61,214.5,7.51]
[1757393477167,7.25,214.59,214.5,7.51]
[1757393477366,7.25,214.57,214.5,7.51]
[1757393477567,3.46966849,214.56,214.5,7.51]
[1757393481673,7.25,214.55,214.44,2.10406248]
[1757393481870,7.25,214.53,214.44,2.10406248]
[1757393482172,7.25,214.51,214.44,2.10406248]
[1757393482372,3.46966849,214.5,214.44,2.10406248]
[1757393484073,3.46966849,214.5,214.42,7.51]
[1757393484371,3.46966849,214.5,214.43,2.10406248]
[1757393485869,3.46966849,214.5,214.47,7.51]
[1757393486178,2.10406248,214.59,214.4,53.18]
[1757393486179,7.25,214.58,214.49,9.61406248]
[1757393486374,7.24833523,214.57,214.49,9.61406248]
[1757393486573,7.24833523,214.56,214.49,9.61406248]
[1757393486874,3.47460561,214.55,214.49,9.61406248]
[1757393487077,3.47460561,214.54,214.52,2.10406248]
[1757393487376,7.25,214.58,214.52,9.61406248]
[1757393487576,7.25,214.56,214.52,9.61406248]
[1757393487777,3.47532686,214.55,214.52,9.61406248]
[1757393488077,3.47532686,214.54,214.52,9.61406248]
[1757393488280,7.25,214.56,214.52,9.61406248]
[1757393488480,3.47639229,214.55,214.53,7.51]
[1757393488674,7.25,214.61,214.55,2.10406248]
[1757393488869,3.47562733,214.6,214.59,7.51]
[1757393489277,7.25,214.63,214.59,7.51]
[1757393489473,3.43478459,214.62,214.59,7.51]
[1757393489673,3.43478459,214.61,214.59,7.51]
[1757393489974,7.25,214.66,214.58,2.10406248]
[1757393490175,7.20998172,214.65,214.58,2.10406248]
[1757393490377,7.20998172,214.64,214.58,2.10406248]
[1757393490572,7.20998172,214.63,214.59,7.51]
[1757393490776,3.43478426,214.62,214.59,7.51]
[1757393491078,3.43478426,214.61,214.59,7.51]
[1757393491280,7.25,214.66,214.59,7.51]
[1757393491483,7.21270708,214.65,214.59,7.51]
[1757393491773,7.21270708,214.64,214.61,2.10406248]
[1757393491968,7.25,214.73,214.63,2.10406248]
[1757393492170,7.21133432,214.72,214.64,7.51]
[1757393492375,7.21133432,214.71,214.64,7.51]
[1757393492574,7.21133432,214.7,214.64,7.51]
[1757393492775,7.21133432,214.69,214.63,9.61406248]
[1757393492971,7.21133432,214.68,214.64,7.51]
[1757393493171,3.43538423,214.67,214.64,7.51]
[1757393493475,7.25,214.73,214.64,7.51]
[1757393493676,7.20992414,214.72,214.64,7.51]
[1757393493972,14.45992414,214.71,214.64,7.51]
[1757393494178,7.25,214.69,214.6,2.10406248]
[1757393494379,7.20992414,214.68,214.6,2.10406248]
[1757393494579,7.20992414,214.67,214.6,2.10406248]
[1757393494882,7.20992414,214.66,214.6,2.10406248]
[1757393495084,3.43476543,214.65,214.61,7.51]
[1757393495378,3.43476543,214.64,214.61,7.51]
[1757393495585,7.25,214.69,214.63,2.10406248]
[1757393495781,14.46071263,214.68,214.63,2.10406248]
[1757393495985,3.43507455,214.67,214.63,2.10406248]
[1757393496185,3.43507455,214.66,214.63,2.10406248]
[1757393496381,3.43507455,214.65,214.63,2.10406248]
[1757393496586,7.25,214.67,214.63,2.10406248]
[1757393496784,3.43551525,214.66,214.63,2.10406248]
[1757393496981,7.25,214.67,214.63,2.10406248]
[1757393497286,3.43551525,214.66,214.63,2.10406248]
[1757393497587,7.25,214.72,214.63,9.61406248]
[1757393497780,7.07968509,214.71,214.63,9.61406248]
[1757393497981,7.25,214.72,214.66,9.61406248]
[1757393497982,3.43677995,214.7,214.66,9.61406248]
[1757393498280,7.25,214.68,214.63,2.10406248]
[1757393498484,3.43677995,214.67,214.63,2.10406248]
[1757393498678,7.25,214.68,214.64,7.51]
[1757393498879,3.4350832,214.67,214.64,7.51]
[1757393499076,7.25,214.68,214.64,7.51]
[1757393499280,3.43403089,214.67,214.64,7.51]
[1757393499479,7.25,214.74,214.63,9.61406248]
[1757393499680,7.07401183,214.73,214.63,9.61406248]
[1757393499884,7.07401183,214.72,214.63,9.61406248]
[1757393500084,7.07401183,214.71,214.63,9.61406248]
[1757393500278,3.43380085,214.7,214.63,9.61406248]
[1757393500480,3.43380085,214.69,214.63,9.61406248]
[1757393500689,3.43380085,214.68,214.63,2.10406248]
[1757393500886,7.25,214.71,214.64,7.51]
[1757393501189,3.4326234,214.7,214.64,7.51]